[Event "GER-chT Youth Countries 2019"]
[Site "Wuerzburg"]
[Date "2019.10.02"]
[Round "1"]
[White "Deuer, Marius"]
[Black "Bakiev, Diyor"]
[Result "0-1"]
[ECO "A61"]
[WhiteElo "1993"]
[BlackElo "2088"]
[Annotator "NA"]
[PlyCount "90"]
[EventDate "2019.10.02"]
[EventType "team-tourn"]
[EventRounds "7"]
[EventCountry "GER"]
[SourceTitle "playchess.com"]
[Source "ChessBase"]
[SourceQuality "1"]
[WhiteTeam "Württemberg"]
[BlackTeam "Hessen"]
[WhiteTeamCountry "GER"]
[BlackTeamCountry "GER"]
[TimeControl "40/5400+30:1800+30"]

1. d4 {[%emt 0:00:00]} Nf6 {[%emt 0:00:00]} 2. c4 {[%emt 0:00:04]} e6 {[%emt 0:00:58]} 3. Nf3 {[%emt 0:00:12]} c5 {[%emt 0:01:33]} 4. d5 {[%emt 0:02:02]} exd5 {[%emt 0:00:35]} 5. cxd5 {[%emt 0:00:09]} d6 {[%emt 0:00:10]} 6. Nc3 {[%emt 0:00:21]} g6 {[%emt 0:00:33]} 7. Bf4 {[%emt 0:00:36]} Bg7 {[%emt 0:01:05]} 8. Qa4+ {[%emt 0:00:27]} Bd7 {[%emt 0:00:32]} 9. Qb3 {[%emt 0:00:14]} Qc7 {[%emt 0:00:35]} 10. e4 {[%emt 0:01:10]} O-O {[%emt 0:01:45]} 11. Nd2 {[%emt 0:00:19]} Nh5 {[%emt 0:01:14]} 12. Be3 {[%emt 0:00:13]} f5 {[%emt 0:12:43]} 13. exf5 {[%emt 0:01:25]} gxf5 {[%emt 0:20:55]} 14. Be2 {[%emt 0:01:52]} Be8 {[%emt 0:11:20]} 15. O-O {[%emt 0:02:59]} a6 {[%emt 0:25:44]} 16. Nf3 {[%emt 0:00:46]} h6 {[%emt 0:07:02]} 17. Qc2 {[%emt 0:02:15]} Qe7 {[%emt 0:04:09]} 18. a4 {[%emt 0:08:05]} Nd7 {[%emt 0:00:45]} 19. Rfe1 {[%emt 0:02:44]} Qf6 {[%emt 0:00:48]} 20. Bd2 {[%emt 0:03:09]} Bg6 {[%emt 0:00:34]} 21. Bc4 {[%emt 0:03:31]} Ne5 {[%emt 0:01:58]} 22. Nxe5 {[%emt 0:03:44]} dxe5 {[%emt 0:00:01]} 23. Qb3 {[%emt 0:00:35]} Rab8 {[%emt 0:02:18]} 24. d6+ {[%emt 0:08:33]} Kh7 {[%emt 0:00:04]} 25. Rad1 {[%emt 0:00:27]} Rfd8 {[%emt 0:01:51]} 26. Be3 {[%emt 0:00:44]} b6 {[%emt 0:01:34]} 27. Nd5 {[%emt 0:05:45]} Qxd6 {[%emt 0:00:43]} 28. Nxb6 {[%emt 0:00:32]} Qc7 {[%emt 0:00:22]} 29. Rxd8 {[%emt 0:00:51]} Rxd8 {[%emt 0:00:57]} 30. Nd5 {[%emt 0:02:33]} Qd6 {[%emt 0:00:28]} 31. Qb6 {[%emt 0:03:30]} Qxb6 {[%emt 0:00:52]} 32. Nxb6 {[%emt 0:00:09]} e4 {[%emt 0:01:03]} 33. Bxc5 {[%emt 0:05:01]} Bxb2 {[%emt 0:00:07]} 34. Bxa6 {[%emt 0:00:44]} Nf4 {[%emt 0:00:27]} 35. Nc4 {[%emt 0:05:55]} Bc3 {[%emt 0:00:18]} 36. Rc1 {[%emt 0:04:17]} Ne2+ {[%emt 0:00:05]} 37. Kh1 {[%emt 0:02:12]} Nxc1 {[%emt 0:00:04]} 38. h4 {[%emt 0:00:28]} Nb3 {[%emt 0:00:18]} 39. Bb6 {[%emt 0:01:06]} Rd1+ {[%emt 0:00:16]} 40. Kh2 {[%emt 0:00:05]} Bf7 {[%emt 0:00:12]} 41. Ne3 {[%emt 0:31:20]} Rd6 {[%emt 0:30:18]} 42. Bc4 {[%emt 0:01:11]} Bxc4 {[%emt 0:00:58]} 43. Nxc4 {[%emt 0:00:06]} Rc6 {[%emt 0:00:06]} 44. a5 {[%emt 0:00:35]} Rxc4 {[%emt 0:00:06]} 45. a6 {[%emt 0:00:02]} Ra4 {[%emt 0:00:06] normal} 0-1

[Event "GER-chT Youth Countries 2019"]
[Site "Wuerzburg"]
[Date "2019.10.02"]
[Round "1"]
[White "Muedder, Melanie"]
[Black "Lederer, Leia"]
[Result "1-0"]
[ECO "C45"]
[WhiteElo "1964"]
[BlackElo "1750"]
[Annotator "NA"]
[PlyCount "81"]
[EventDate "2019.10.02"]
[EventType "swiss"]
[EventRounds "7"]
[EventCountry "GER"]
[SourceTitle "playchess.com"]
[Source "ChessBase"]
[SourceQuality "1"]
[WhiteTeam "Nordrhein-Westfalen"]
[BlackTeam "Team Süd"]
[WhiteTeamCountry "GER"]
[BlackTeamCountry "GER"]
[TimeControl "40/5400+30:1800+30"]

1. e4 {[%emt 0:00:00]} e5 {[%emt 0:00:00]} 2. Nf3 {[%emt 0:00:00]} Nc6 {[%emt 0:00:00]} 3. d4 {[%emt 0:00:00]} exd4 {[%emt 0:00:00]} 4. Nxd4 {[%emt 0:00:00]} Bc5 {[%emt 0:00:27]} 5. Be3 {[%emt 0:00:23]} Qf6 {[%emt 0:00:17]} 6. c3 {[%emt 0:00:12]} Nge7 {[%emt 0:02:11]} 7. Bb5 {[%emt 0:00:16]} Qg6 {[%emt 0:07:59]} 8. O-O {[%emt 0:21:28]} d6 {[%emt 0:05:09]} 9. Nd2 {[%emt 0:06:02]} O-O {[%emt 0:04:24]} 10. f4 {[%emt 0:05:45]} f5 {[%emt 0:09:53]} 11. exf5 {[%emt 0:19:32]} Nxf5 {[%emt 0:03:08]} 12. Bc4+ {[%emt 0:03:30]} Kh8 {[%emt 0:01:02]} 13. Nxf5 {[%emt 0:02:24]} Bxf5 {[%emt 0:02:02]} 14. Bxc5 {[%emt 0:02:16]} dxc5 {[%emt 0:00:08]} 15. Qf3 {[%emt 0:03:27]} Rad8 {[%emt 0:03:51]} 16. Rf2 {[%emt 0:03:39]} Rd6 {[%emt 0:02:56]} 17. Bb5 {[%emt 0:08:29]} Rfd8 {[%emt 0:13:21]} 18. Qe3 {[%emt 0:06:10]} a6 {[%emt 0:14:35]} 19. Bxc6 {[%emt 0:05:20]} Rxc6 {[%emt 0:06:00]} 20. Nc4 {[%emt 0:01:42]} Rd3 {[%emt 0:05:23]} 21. Qe7 {[%emt 0:01:55]} h6 {[%emt 0:10:37]} 22. Ne5 {[%emt 0:00:28]} Qh5 {[%emt 0:00:15]} 23. Nxc6 {[%emt 0:03:30]} bxc6 {[%emt 0:00:40]} 24. Qxc5 {[%emt 0:00:50]} Rd6 {[%emt 0:02:12]} 25. Re1 {[%emt 0:00:48]} Qg4 {[%emt 0:00:38]} 26. Qe3 {[%emt 0:00:53]} Be6 {[%emt 0:01:43]} 27. h3 {[%emt 0:00:47]} Qf5 {[%emt 0:00:34]} 28. Qe5 {[%emt 0:00:44]} Qf7 {[%emt 0:00:44]} 29. b3 {[%emt 0:00:38]} Bd7 {[%emt 0:00:55]} 30. f5 {[%emt 0:01:09]} Rf6 {[%emt 0:01:47]} 31. Ref1 {[%emt 0:01:01]} Qh5 {[%emt 0:00:57]} 32. Qxc7 {[%emt 0:00:44]} Be8 {[%emt 0:01:15]} 33. Qc8 {[%emt 0:00:40]} Kh7 {[%emt 0:00:40]} 34. Re1 {[%emt 0:00:45]} Bf7 {[%emt 0:00:28]} 35. c4 {[%emt 0:00:23]} Qh4 {[%emt 0:00:34]} 36. Qd7 {[%emt 0:00:40]} Qg3 {[%emt 0:00:27]} 37. Ref1 {[%emt 0:01:08]} Bh5 {[%emt 0:00:42]} 38. Qd2 {[%emt 0:00:32]} Rd6 {[%emt 0:00:23]} 39. Qf4 {[%emt 0:00:23]} Qd3 {[%emt 0:00:29]} 40. Kh2 {[%emt 0:00:40]} Rf6 {[%emt 0:00:28]} 41. Qg3 {[%emt 0:03:06] normal} 1-0

[Event "GER-chT Youth Countries 2019"]
[Site "Wuerzburg"]
[Date "2019.10.02"]
[Round "1"]
[White "Costa, Leonardo"]
[Black "Butenandt, Svenja"]
[Result "1-0"]
[ECO "B81"]
[WhiteElo "1959"]
[BlackElo "1805"]
[Annotator "NA"]
[PlyCount "41"]
[EventDate "2019.10.02"]
[EventType "team-tourn"]
[EventRounds "7"]
[EventCountry "GER"]
[SourceTitle "playchess.com"]
[Source "ChessBase"]
[SourceQuality "1"]
[WhiteTeam "Germany"]
[BlackTeam "Germany"]
[WhiteTeamCountry "GER"]
[BlackTeamCountry "GER"]
[TimeControl "40/5400+30:1800+30"]

1. e4 {[%emt 0:00:00]} c5 {[%emt 0:00:00]} 2. Nf3 {[%emt 0:00:00]} e6 {[%emt 0:00:00]} 3. d4 {[%emt 0:00:00]} cxd4 {[%emt 0:00:00]} 4. Nxd4 {[%emt 0:00:00]} Nf6 {[%emt 0:00:00]} 5. Nc3 {[%emt 0:00:12]} d6 {[%emt 0:00:06]} 6. g4 {[%emt 0:00:56]} h6 {[%emt 0:00:30]} 7. Rg1 {[%emt 0:02:01]} Nc6 {[%emt 0:02:27]} 8. Be3 {[%emt 0:03:08]} d5 {[%emt 0:13:49]} 9. exd5 {[%emt 0:09:34]} Nxd5 {[%emt 0:01:18]} 10. Nxd5 {[%emt 0:04:03]} Qxd5 {[%emt 0:04:59]} 11. Nxc6 {[%emt 0:02:40]} Qxc6 {[%emt 0:02:00]} 12. Bg2 {[%emt 0:01:12]} Qc7 {[%emt 0:01:19]} 13. Qd4 {[%emt 0:06:02]} Qxh2 {[%emt 0:29:34]} 14. O-O-O {[%emt 0:00:45]} Qc7 {[%emt 0:01:30]} 15. Bf4 {[%emt 0:04:26]} Qa5 {[%emt 0:03:20]} 16. Bxb7 {[%emt 0:01:23]} Bc5 {[%emt 0:04:28]} 17. Bc6+ {[%emt 0:02:04]} Ke7 {[%emt 0:00:15]} 18. Bd6+ {[%emt 0:00:08]} Bxd6 {[%emt 0:00:57]} 19. Qxd6+ {[%emt 0:00:07]} Kf6 {[%emt 0:00:03]} 20. Qf4+ {[%emt 0:02:31]} Ke7 {[%emt 0:00:25]} 21. Bxa8 {[%emt 0:00:08] unterminated} 1-0

[Event "GER-chT Youth Countries 2019"]
[Site "Wuerzburg"]
[Date "2019.10.02"]
[Round "1"]
[White "Dietz, Kristin"]
[Black "Gressler, Christian"]
[Result "1-0"]
[ECO "C06"]
[WhiteElo "1948"]
[BlackElo "1464"]
[Annotator "NA"]
[PlyCount "97"]
[EventDate "2019.10.02"]
[EventType "team-tourn"]
[EventRounds "7"]
[EventCountry "GER"]
[SourceTitle "playchess.com"]
[Source "ChessBase"]
[SourceQuality "1"]
[WhiteTeam "Germany"]
[BlackTeam "Germany"]
[WhiteTeamCountry "GER"]
[BlackTeamCountry "GER"]
[TimeControl "40/5400+30:1800+30"]

1. e4 {[%emt 0:00:00]} e6 {[%emt 0:00:00]} 2. d4 {[%emt 0:00:00]} d5 {[%emt 0:00:00]} 3. Nd2 {[%emt 0:00:00]} Nf6 {[%emt 0:00:00]} 4. e5 {[%emt 0:00:00]} Nfd7 {[%emt 0:00:00]} 5. Bd3 {[%emt 0:00:09]} c5 {[%emt 0:00:08]} 6. c3 {[%emt 0:00:12]} Nc6 {[%emt 0:00:10]} 7. Ne2 {[%emt 0:00:26]} cxd4 {[%emt 0:00:59]} 8. cxd4 {[%emt 0:00:11]} f6 {[%emt 0:00:32]} 9. exf6 {[%emt 0:00:31]} Nxf6 {[%emt 0:00:35]} 10. Nf3 {[%emt 0:00:10]} Bd6 {[%emt 0:02:59]} 11. O-O {[%emt 0:00:31]} O-O {[%emt 0:03:52]} 12. Bf4 {[%emt 0:05:32]} Ne4 {[%emt 0:18:26]} 13. Bxd6 {[%emt 0:02:32]} Nxd6 {[%emt 0:02:51]} 14. Nc3 {[%emt 0:01:17]} Nf5 {[%emt 0:04:29]} 15. Ne2 {[%emt 0:10:15]} Nh4 {[%emt 0:04:38]} 16. Nxh4 {[%emt 0:12:54]} Qxh4 {[%emt 0:00:22]} 17. Qd2 {[%emt 0:03:38]} Bd7 {[%emt 0:02:34]} 18. Qe3 {[%emt 0:09:25]} Rae8 {[%emt 0:03:37]} 19. Qg3 {[%emt 0:01:38]} Qxg3 {[%emt 0:01:10]} 20. fxg3 {[%emt 0:04:03]} Nb4 {[%emt 0:00:20]} 21. Nf4 {[%emt 0:09:07]} g5 {[%emt 0:03:01]} 22. a3 {[%emt 0:00:24]} gxf4 {[%emt 0:00:32]} 23. axb4 {[%emt 0:00:06]} fxg3 {[%emt 0:00:33]} 24. Rxa7 {[%emt 0:01:17]} gxh2+ {[%emt 0:00:33]} 25. Kxh2 {[%emt 0:00:07]} Rxf1 {[%emt 0:04:53]} 26. Bxf1 {[%emt 0:00:02]} Rb8 {[%emt 0:00:54]} 27. b5 {[%emt 0:01:25]} Kf8 {[%emt 0:00:36]} 28. b6 {[%emt 0:00:57]} Ke7 {[%emt 0:00:42]} 29. Kg3 {[%emt 0:14:07]} Kd6 {[%emt 0:00:40]} 30. Ra3 {[%emt 0:00:05]} Rg8+ {[%emt 0:05:29]} 31. Kh4 {[%emt 0:02:34]} Rf8 {[%emt 0:00:20]} 32. Rf3 {[%emt 0:02:22]} Rxf3 {[%emt 0:01:01]} 33. gxf3 {[%emt 0:00:02]} Be8 {[%emt 0:00:20]} 34. f4 {[%emt 0:01:46]} Bg6 {[%emt 0:00:13]} 35. Bh3 {[%emt 0:00:26]} h6 {[%emt 0:01:07]} 36. Bg4 {[%emt 0:00:53]} Ke7 {[%emt 0:00:08]} 37. Be2 {[%emt 0:00:35]} Be8 {[%emt 0:01:38]} 38. Kg4 {[%emt 0:08:00]} Kf6 {[%emt 0:00:50]} 39. Bd3 {[%emt 0:00:37]} h5+ {[%emt 0:00:34]} 40. Kh4 {[%emt 0:00:18]} Bg6 {[%emt 0:00:13]} 41. Ba6 {[%emt 0:30:20]} bxa6 {[%emt 0:34:45]} 42. b7 {[%emt 0:00:07]} Bf5 {[%emt 0:01:43]} 43. b8=Q {[%emt 0:00:15]} Bg4 {[%emt 0:00:13]} 44. Qe5+ {[%emt 0:00:39]} Kf7 {[%emt 0:00:31]} 45. Qc7+ {[%emt 0:00:32]} Kf6 {[%emt 0:00:23]} 46. Qd8+ {[%emt 0:00:09]} Kf7 {[%emt 0:00:24]} 47. Kg5 {[%emt 0:00:13]} Bf5 {[%emt 0:00:51]} 48. Qd7+ {[%emt 0:00:07]} Kf8 {[%emt 0:00:32]} 49. Kf6 {[%emt 0:00:06] normal} 1-0

[Event "GER-chT Youth Countries 2019"]
[Site "Wuerzburg"]
[Date "2019.10.02"]
[Round "1"]
[White "Moenster, Madita"]
[Black "Riddell, Joshua S."]
[Result "1-0"]
[ECO "C97"]
[WhiteElo "1916"]
[BlackElo "2130"]
[Annotator "NA"]
[PlyCount "81"]
[EventDate "2019.10.02"]
[EventType "team-tourn"]
[EventRounds "7"]
[EventCountry "GER"]
[SourceTitle "playchess.com"]
[Source "ChessBase"]
[SourceQuality "1"]
[WhiteTeam "Germany"]
[BlackTeam "Germany"]
[WhiteTeamCountry "GER"]
[BlackTeamCountry "GER"]
[TimeControl "40/5400+30:1800+30"]

1. e4 {[%emt 0:00:00]} e5 {[%emt 0:00:00]} 2. Nf3 {[%emt 0:00:00]} Nc6 {[%emt 0:00:00]} 3. Bb5 {[%emt 0:00:00]} a6 {[%emt 0:00:01]} 4. Ba4 {[%emt 0:00:02]} Nf6 {[%emt 0:00:13]} 5. O-O {[%emt 0:00:13]} Be7 {[%emt 0:00:15]} 6. Re1 {[%emt 0:00:07]} b5 {[%emt 0:00:30]} 7. Bb3 {[%emt 0:00:11]} d6 {[%emt 0:00:07]} 8. c3 {[%emt 0:01:03]} O-O {[%emt 0:00:15]} 9. h3 {[%emt 0:00:40]} Na5 {[%emt 0:00:14]} 10. Bc2 {[%emt 0:00:49]} c5 {[%emt 0:01:33]} 11. d4 {[%emt 0:01:25]} Qc7 {[%emt 0:00:51]} 12. Nbd2 {[%emt 0:04:02]} Bd7 {[%emt 0:04:43]} 13. Nf1 {[%emt 0:05:55]} cxd4 {[%emt 0:02:08]} 14. cxd4 {[%emt 0:00:36]} Rac8 {[%emt 0:00:10]} 15. Ne3 {[%emt 0:05:11]} Rfd8 {[%emt 0:03:08]} 16. b3 {[%emt 0:06:44]} Nc6 {[%emt 0:03:47]} 17. Bb2 {[%emt 0:05:49]} h6 {[%emt 0:06:16]} 18. Rc1 {[%emt 0:06:05]} exd4 {[%emt 0:07:52]} 19. Nxd4 {[%emt 0:10:44]} Nxd4 {[%emt 0:03:36]} 20. Bxd4 {[%emt 0:01:51]} Qb7 {[%emt 0:02:52]} 21. Qf3 {[%emt 0:09:12]} Nh7 {[%emt 0:06:11]} 22. Nf5 {[%emt 0:07:00]} Bxf5 {[%emt 0:00:38]} 23. Qxf5 {[%emt 0:00:59]} g6 {[%emt 0:03:59]} 24. Qg4 {[%emt 0:03:00]} Bg5 {[%emt 0:04:41]} 25. f4 {[%emt 0:01:58]} Bf6 {[%emt 0:01:46]} 26. e5 {[%emt 0:04:57]} h5 {[%emt 0:00:15]} 27. Qg3 {[%emt 0:06:06]} dxe5 {[%emt 0:00:50]} 28. fxe5 {[%emt 0:07:39]} Rxd4 {[%emt 0:01:30]} 29. exf6 {[%emt 0:00:19]} Rxc2 {[%emt 0:01:50]} 30. Re8+ {[%emt 0:02:53]} Nf8 {[%emt 0:00:13]} 31. Rxc2 {[%emt 0:00:30]} Qb6 {[%emt 0:02:15]} 32. Kh2 {[%emt 0:02:41]} Rd1 {[%emt 0:03:08]} 33. Qe3 {[%emt 0:05:25]} Qxf6 {[%emt 0:01:29]} 34. Rcc8 {[%emt 0:01:25]} Qd6+ {[%emt 0:00:29]} 35. Qe5 {[%emt 0:00:55]} Qxe5+ {[%emt 0:00:10]} 36. Rxe5 {[%emt 0:00:05]} Kg7 {[%emt 0:00:07]} 37. Rc6 {[%emt 0:01:00]} Nd7 {[%emt 0:01:31]} 38. Re8 {[%emt 0:00:44]} Nf6 {[%emt 0:00:40]} 39. Rb8 {[%emt 0:00:34]} Rd2 {[%emt 0:00:39]} 40. Rxa6 {[%emt 0:00:36]} Nd5 {[%emt 0:00:57]} 41. Rd6 {[%emt 0:01:17] normal} 1-0

[Event "GER-chT Youth Countries 2019"]
[Site "Wuerzburg"]
[Date "2019.10.02"]
[Round "1"]
[White "Schnabel, Luise"]
[Black "Reuter, Elisa"]
[Result "1/2-1/2"]
[ECO "B34"]
[WhiteElo "1900"]
[BlackElo "1873"]
[Annotator "NA"]
[PlyCount "82"]
[EventDate "2019.10.02"]
[EventType "swiss"]
[EventRounds "7"]
[EventCountry "GER"]
[SourceTitle "playchess.com"]
[Source "ChessBase"]
[SourceQuality "1"]
[WhiteTeam "Berlin"]
[BlackTeam "Thüringen"]
[WhiteTeamCountry "GER"]
[BlackTeamCountry "GER"]
[TimeControl "40/5400+30:1800+30"]

1. e4 {[%emt 0:00:00]} c5 {[%emt 0:00:00]} 2. Nf3 {[%emt 0:00:00]} Nc6 {[%emt 0:00:00]} 3. d4 {[%emt 0:00:00]} cxd4 {[%emt 0:00:00]} 4. Nxd4 {[%emt 0:00:06]} g6 {[%emt 0:00:00]} 5. Nc3 {[%emt 0:00:22]} Bg7 {[%emt 0:00:00]} 6. Nb3 {[%emt 0:00:13]} Nf6 {[%emt 0:00:00]} 7. Be2 {[%emt 0:00:31]} O-O {[%emt 0:00:02]} 8. Bg5 {[%emt 0:00:34]} d6 {[%emt 0:01:33]} 9. O-O {[%emt 0:00:20]} a5 {[%emt 0:00:13]} 10. a4 {[%emt 0:01:07]} Be6 {[%emt 0:02:12]} 11. f4 {[%emt 0:08:37]} Rc8 {[%emt 0:05:05]} 12. Bf3 {[%emt 0:06:44]} Nd7 {[%emt 0:05:19]} 13. Rb1 {[%emt 0:11:53]} Nb4 {[%emt 0:04:11]} 14. Kh1 {[%emt 0:13:16]} Bxb3 {[%emt 0:06:34]} 15. cxb3 {[%emt 0:00:31]} Nc5 {[%emt 0:04:03]} 16. Nd5 {[%emt 0:11:32]} Nc6 {[%emt 0:08:16]} 17. Re1 {[%emt 0:11:07]} Re8 {[%emt 0:06:57]} 18. Bh4 {[%emt 0:11:49]} Nb4 {[%emt 0:07:12]} 19. Nxb4 {[%emt 0:03:42]} axb4 {[%emt 0:00:51]} 20. Re3 {[%emt 0:05:31]} b5 {[%emt 0:10:46]} 21. Be2 {[%emt 0:02:39]} bxa4 {[%emt 0:00:55]} 22. Bb5 {[%emt 0:00:34]} Rf8 {[%emt 0:00:08]} 23. bxa4 {[%emt 0:00:18]} b3 {[%emt 0:13:23]} 24. Qd2 {[%emt 0:02:49]} Rc7 {[%emt 0:03:53]} 25. Rd1 {[%emt 0:01:04]} Qa8 {[%emt 0:01:54]} 26. Qe2 {[%emt 0:01:42]} Ne6 {[%emt 0:03:32]} 27. f5 {[%emt 0:03:10]} Rc2 {[%emt 0:03:39]} 28. Qf1 {[%emt 0:00:28]} Qa7 {[%emt 0:09:07]} 29. Rxb3 {[%emt 0:01:34]} Nc5 {[%emt 0:00:53]} 30. Bf2 {[%emt 0:00:46]} Rxb2 {[%emt 0:01:33]} 31. Rxb2 {[%emt 0:00:19]} Bxb2 {[%emt 0:00:04]} 32. Qe2 {[%emt 0:00:17]} Be5 {[%emt 0:01:28]} 33. Rd5 {[%emt 0:01:09]} Rc8 {[%emt 0:01:10]} 34. g3 {[%emt 0:00:44]} e6 {[%emt 0:01:14]} 35. fxe6 {[%emt 0:00:33]} fxe6 {[%emt 0:00:02]} 36. Qg4 {[%emt 0:00:28]} Qf7 {[%emt 0:01:03]} 37. Rd2 {[%emt 0:00:43]} Nb3 {[%emt 0:00:18]} 38. Re2 {[%emt 0:00:34]} Nd4 {[%emt 0:00:45]} 39. Bxd4 {[%emt 0:00:55]} Bxd4 {[%emt 0:00:11]} 40. Qf4 {[%emt 0:00:32]} Qxf4 {[%emt 0:00:33]} 41. gxf4 {[%emt 0:30:07]} Rf8 {[%emt 0:30:57] normal} 1/2-1/2

[Event "GER-chT Youth Countries 2019"]
[Site "Wuerzburg"]
[Date "2019.10.02"]
[Round "1"]
[White "Glinzner, Alva"]
[Black "Ravina, David"]
[Result "0-1"]
[ECO "C03"]
[WhiteElo "1897"]
[BlackElo "2087"]
[Annotator "NA"]
[PlyCount "82"]
[EventDate "2019.10.02"]
[EventType "swiss"]
[EventRounds "7"]
[EventCountry "GER"]
[SourceTitle "playchess.com"]
[Source "ChessBase"]
[SourceQuality "1"]
[WhiteTeam "Schleswig-Holstein"]
[BlackTeam "Hamburg/Schleswig-Holstein"]
[WhiteTeamCountry "GER"]
[BlackTeamCountry "GER"]
[TimeControl "40/5400+30:1800+30"]

1. e4 {[%emt 0:00:00]} e6 {[%emt 0:00:00]} 2. d4 {[%emt 0:00:00]} d5 {[%emt 0:00:00]} 3. Nd2 {[%emt 0:00:09]} Nc6 {[%emt 0:00:02]} 4. c3 {[%emt 0:00:27]} e5 {[%emt 0:07:55]} 5. dxe5 {[%emt 0:07:13]} dxe4 {[%emt 0:19:24]} 6. Qa4 {[%emt 0:09:30]} Bf5 {[%emt 0:09:07]} 7. Ne2 {[%emt 0:05:25]} Nge7 {[%emt 0:17:19]} 8. Ng3 {[%emt 0:16:52]} e3 {[%emt 0:04:17]} 9. fxe3 {[%emt 0:03:45]} Be6 {[%emt 0:05:48]} 10. Nf3 {[%emt 0:04:06]} Qd7 {[%emt 0:03:50]} 11. Bb5 {[%emt 0:09:50]} a6 {[%emt 0:05:57]} 12. Ne4 {[%emt 0:15:50]} Qd5 {[%emt 0:08:13]} 13. Bxc6+ {[%emt 0:05:25]} Nxc6 {[%emt 0:03:37]} 14. Neg5 {[%emt 0:01:05]} Qc4 {[%emt 0:02:16]} 15. Qc2 {[%emt 0:02:56]} Nxe5 {[%emt 0:04:41]} 16. Nxe5 {[%emt 0:02:45]} Qh4+ {[%emt 0:00:06]} 17. Qf2 {[%emt 0:02:53]} Qxg5 {[%emt 0:00:07]} 18. Nf3 {[%emt 0:00:14]} Qh5 {[%emt 0:02:23]} 19. e4 {[%emt 0:05:05]} Bc4 {[%emt 0:02:16]} 20. Be3 {[%emt 0:02:35]} Rd8 {[%emt 0:00:57]} 21. Bd4 {[%emt 0:01:22]} c5 {[%emt 0:01:04]} 22. Be3 {[%emt 0:00:32]} Be7 {[%emt 0:00:06]} 23. b3 {[%emt 0:01:01]} Bd3 {[%emt 0:00:34]} 24. O-O-O {[%emt 0:00:51]} c4 {[%emt 0:00:23]} 25. Bd4 {[%emt 0:01:06]} O-O {[%emt 0:01:07]} 26. Qe3 {[%emt 0:00:33]} Rxd4 {[%emt 0:00:26]} 27. Qxd4 {[%emt 0:00:54]} Ba3+ {[%emt 0:00:05]} 28. Kd2 {[%emt 0:00:05]} Bc5 {[%emt 0:00:05]} 29. Qd5 {[%emt 0:00:26]} Qg4 {[%emt 0:00:53]} 30. Qg5 {[%emt 0:01:08]} Qxe4 {[%emt 0:01:07]} 31. Rhe1 {[%emt 0:00:30]} Qc6 {[%emt 0:00:21]} 32. b4 {[%emt 0:00:44]} Ba7 {[%emt 0:00:42]} 33. Kc1 {[%emt 0:00:24]} Qa4 {[%emt 0:00:08]} 34. Rd2 {[%emt 0:00:16]} Qa3+ {[%emt 0:00:08]} 35. Kd1 {[%emt 0:00:44]} Qxc3 {[%emt 0:00:19]} 36. Qe5 {[%emt 0:00:35]} Qxb4 {[%emt 0:00:07]} 37. Rb2 {[%emt 0:00:09]} Qa4+ {[%emt 0:00:40]} 38. Kc1 {[%emt 0:00:17]} b5 {[%emt 0:00:57]} 39. Qc7 {[%emt 0:01:05]} Bb8 {[%emt 0:00:16]} 40. Qc5 {[%emt 0:00:26]} Bf4+ {[%emt 0:00:43]} 41. Nd2 {[%emt 0:30:36]} h5 {[%emt 0:04:27] normal} 0-1

[Event "GER-chT Youth Countries 2019"]
[Site "Wuerzburg"]
[Date "2019.10.02"]
[Round "1"]
[White "Franke, Luca"]
[Black "Bashylina, Luisa"]
[Result "1/2-1/2"]
[ECO "B28"]
[WhiteElo "1872"]
[BlackElo "1933"]
[Annotator "NA"]
[PlyCount "91"]
[EventDate "2019.10.02"]
[EventType "team-tourn"]
[EventRounds "7"]
[EventCountry "GER"]
[SourceTitle "playchess.com"]
[Source "ChessBase"]
[SourceQuality "1"]
[WhiteTeam "Team Süd"]
[BlackTeam "Nordrhein-Westfalen"]
[WhiteTeamCountry "GER"]
[BlackTeamCountry "GER"]
[TimeControl "40/5400+30:1800+30"]

1. e4 {[%emt 0:00:00]} c5 {[%emt 0:00:00]} 2. Nf3 {[%emt 0:00:00]} a6 {[%emt 0:00:00]} 3. d4 {[%emt 0:00:12]} cxd4 {[%emt 0:00:00]} 4. Nxd4 {[%emt 0:00:10]} Nf6 {[%emt 0:00:10]} 5. Nc3 {[%emt 0:00:51]} e5 {[%emt 0:00:09]} 6. Nf3 {[%emt 0:03:10]} Bb4 {[%emt 0:00:09]} 7. Qd3 {[%emt 0:02:03]} d5 {[%emt 0:07:12]} 8. a3 {[%emt 0:06:10]} Bxc3+ {[%emt 0:03:24]} 9. Qxc3 {[%emt 0:00:16]} O-O {[%emt 0:03:39]} 10. Be2 {[%emt 0:09:42]} d4 {[%emt 0:04:16]} 11. Qd3 {[%emt 0:01:01]} Nbd7 {[%emt 0:02:36]} 12. b4 {[%emt 0:02:41]} b5 {[%emt 0:01:50]} 13. O-O {[%emt 0:01:35]} Bb7 {[%emt 0:00:37]} 14. Nd2 {[%emt 0:00:33]} Rc8 {[%emt 0:01:14]} 15. Bb2 {[%emt 0:02:10]} Nb6 {[%emt 0:02:38]} 16. Bf3 {[%emt 0:02:33]} Na4 {[%emt 0:06:55]} 17. Qb3 {[%emt 0:00:46]} Nc3 {[%emt 0:01:06]} 18. Rfe1 {[%emt 0:00:23]} Rc7 {[%emt 0:03:44]} 19. Rac1 {[%emt 0:01:06]} Qa8 {[%emt 0:00:42]} 20. Bxc3 {[%emt 0:03:41]} dxc3 {[%emt 0:00:56]} 21. Nb1 {[%emt 0:00:39]} Nxe4 {[%emt 0:00:50]} 22. Rcd1 {[%emt 0:00:13]} Rfc8 {[%emt 0:03:34]} 23. Re3 {[%emt 0:01:07]} Rc4 {[%emt 0:10:19]} 24. Rdd3 {[%emt 0:04:30]} Rd4 {[%emt 0:09:46]} 25. Nxc3 {[%emt 0:03:01]} Nd2 {[%emt 0:02:44]} 26. Bxb7 {[%emt 0:01:37]} Qxb7 {[%emt 0:00:14]} 27. Qa2 {[%emt 0:01:03]} Nc4 {[%emt 0:06:28]} 28. Rg3 {[%emt 0:01:20]} Qd7 {[%emt 0:01:10]} 29. h3 {[%emt 0:01:25]} f5 {[%emt 0:02:07]} 30. Ne2 {[%emt 0:02:12]} Rd6 {[%emt 0:01:34]} 31. Rxd6 {[%emt 0:00:26]} Qxd6 {[%emt 0:00:06]} 32. Rd3 {[%emt 0:00:12]} Qe7 {[%emt 0:03:04]} 33. Qb3 {[%emt 0:02:34]} Kh8 {[%emt 0:02:36]} 34. Qc3 {[%emt 0:01:59]} Nd6 {[%emt 0:01:03]} 35. Qd2 {[%emt 0:00:47]} Ne4 {[%emt 0:01:27]} 36. Qd1 {[%emt 0:00:14]} h6 {[%emt 0:01:55]} 37. Ng3 {[%emt 0:03:35]} Nxg3 {[%emt 0:01:54]} 38. Rxg3 {[%emt 0:00:01]} Qc7 {[%emt 0:00:48]} 39. Qd5 {[%emt 0:00:54]} Qe7 {[%emt 0:04:28]} 40. Rg6 {[%emt 0:04:31]} Rd8 {[%emt 0:11:13]} 41. Qc6 {[%emt 0:31:53]} e4 {[%emt 0:31:12]} 42. Re6 {[%emt 0:01:01]} Qg5 {[%emt 0:00:00]} 43. Rg6 {[%emt 0:00:00]} Qc1+ {[%emt 0:00:00]} 44. Kh2 {[%emt 0:00:00]} Qf4+ {[%emt 0:00:00]} 45. Rg3 {[%emt 0:00:00]} Qxf2 {[%emt 0:00:00]} 46. Rxg7 {[%emt 0:00:00] normal} 1/2-1/2